bitfinex/quotes_BTCUSD_20250406
["timestamp","ask_amount","ask_price","bid_price","bid_amount"]
[1743976750665,0.012665,78957.0,78951.0,0.253319]
[1743976750909,0.00644867,78953.0,78952.0,0.12290297]
[1743976751081,0.012665,78957.0,78952.0,0.12290297]
[1743976751491,0.253308,78955.0,78952.0,0.12290297]
[1743976751693,0.012665,78952.0,78944.0,0.01454085]
[1743976751895,0.012666,78948.0,78946.0,0.01454085]
[1743976752094,0.266,78947.0,78946.0,0.01454085]
[1743976752326,0.27244867,78947.0,78942.0,1.34783]
[1743976752525,0.012666,78948.0,78943.0,0.253344]
[1743976752763,0.00644867,78947.0,78945.0,0.012667]
[1743976752973,0.253329,78949.0,78945.0,0.012667]
[1743976753174,0.00644867,78946.0,78944.0,0.253342]
[1743976753347,0.253329,78949.0,78944.0,0.253342]
[1743976753554,0.00644867,78945.0,78944.0,0.253342]
[1743976753751,0.253329,78949.0,78944.0,0.253342]
[1743976753967,0.253329,78949.0,78945.0,0.001]
[1743976754300,0.253329,78949.0,78946.0,0.003]
[1743976754446,0.253329,78949.0,78944.0,0.266009]
[1743976754646,0.253329,78949.0,78944.0,0.267009]
[1743976754852,0.253329,78949.0,78944.0,0.269009]
[1743976755220,0.012666,78950.0,78945.0,0.25334]
[1743976755426,0.01583266,78950.0,78946.0,0.002]
[1743976755809,0.01583266,78950.0,78945.0,0.25334]
[1743976756369,0.253328,78949.0,78946.0,0.001]
[1743976756792,0.253328,78949.0,78945.0,0.25334]
[1743976757172,0.253328,78949.0,78945.0,0.25434]
[1743976757557,0.253328,78949.0,78945.0,0.25334]
[1743976757804,0.253328,78949.0,78946.0,0.003]
[1743976757964,0.012665,78952.0,78947.0,0.266]
[1743976758161,0.26915265,78952.0,78947.0,0.266]
[1743976758360,0.253323,78951.0,78947.0,0.012666]
[1743976758794,0.253321,78952.0,78947.0,0.012666]
[1743976759003,0.265978,78954.0,78948.0,0.012666]
[1743976759216,0.253336,78947.0,78942.0,1.48339897]
[1743976759417,0.012665,78954.0,78947.0,0.002]
[1743976759661,0.00316657,78953.0,78948.0,0.13744382]
[1743976759870,0.012665,78956.0,78950.0,0.012666]
[1743976760066,0.25331,78955.0,78951.0,0.12290297]
[1743976760309,0.00643678,78955.0,78951.0,0.37622397]
[1743976760479,0.00643678,78955.0,78951.0,0.38888997]
[1743976760702,0.27241178,78955.0,78949.0,0.253326]
[1743976761055,0.25333,78949.0,78947.0,0.002]
[1743976761262,0.012666,78950.0,78947.0,0.12290297]
[1743976761460,0.253321,78951.0,78947.0,0.12290297]
[1743976761699,0.253313,78954.0,78949.0,0.253327]
[1743976761893,0.00643678,78953.0,78949.0,0.253327]
[1743976762296,0.012666,78948.0,78947.0,0.12490297]
[1743976762514,0.012666,78948.0,78947.0,0.12290297]
[1743976763059,0.00643678,78948.0,78947.0,0.12290297]
[1743976763377,0.26599,78951.0,78947.0,0.12290297]
[1743976763604,0.00643678,78950.0,78947.0,0.12290297]
[1743976763842,0.25976278,78950.0,78947.0,0.12490297]
[1743976764196,0.00643678,78950.0,78947.0,0.37623697]
[1743976764421,0.00643678,78950.0,78949.0,0.012666]
[1743976764825,0.253281,78964.0,78952.0,0.012665]
[1743976765188,0.265942,78965.0,78960.0,0.012664]
[1743976765431,0.253282,78964.0,78960.0,0.012664]
[1743976765833,0.00643678,78963.0,78960.0,0.012664]
[1743976766039,0.265953,78961.0,78955.0,0.265972]
[1743976766240,0.265953,78961.0,78957.0,0.253302]
[1743976766641,0.005,78964.0,78961.0,0.012664]
[1743976766995,0.005,78964.0,78962.0,0.253284]
[1743976767199,0.0127994,78968.0,78963.0,0.265945]
[1743976767399,0.0001364,78968.0,78963.0,0.265945]
[1743976767606,0.005,78964.0,78963.0,0.265945]
[1743976767808,0.0001364,78968.0,78963.0,0.265945]
[1743976768228,0.005,78964.0,78963.0,0.265945]
[1743976768837,0.008,78964.0,78963.0,0.265945]
[1743976769624,0.013,78964.0,78963.0,0.265945]
[1743976770241,0.013,78964.0,78959.0,0.431598]
[1743976770242,0.008,78964.0,78959.0,0.431598]
[1743976770440,0.001,78964.0,78960.0,0.37619297]
[1743976770834,0.001,78964.0,78963.0,0.254283]
[1743976771095,0.001,78964.0,78962.0,0.012664]
[1743976772038,0.265935,78967.0,78963.0,0.001]
[1743976772238,0.265935,78967.0,78962.0,0.265947]
[1743976773181,0.266935,78967.0,78962.0,0.265947]
[1743976773679,0.265935,78967.0,78962.0,0.266947]
[1743976773841,0.265935,78967.0,78962.0,0.265947]
[1743976774039,0.265935,78967.0,78962.0,0.266947]
[1743976774437,0.265938,78966.0,78961.0,0.253287]
[1743976774686,0.265938,78966.0,78961.0,0.37618997]
[1743976775094,0.265938,78966.0,78961.0,0.12290297]
[1743976775292,0.265938,78966.0,78962.0,0.001]
[1743976776684,0.265938,78966.0,78961.0,0.12290297]
[1743976776893,0.265938,78966.0,78961.0,0.12390297]
[1743976777209,0.265938,78966.0,78961.0,0.12290297]
[1743976777591,0.012663,78966.0,78962.0,0.254286]
[1743976777791,0.265938,78966.0,78961.0,0.13556697]
[1743976778209,0.265938,78966.0,78961.0,0.13656697]
[1743976778371,0.265938,78966.0,78961.0,0.13556697]
[1743976779131,0.012663,78966.0,78962.0,0.253286]
[1743976779847,0.012663,78966.0,78962.0,0.254286]
[1743976780494,0.012663,78966.0,78962.0,0.001]
[1743976780925,0.0001364,78968.0,78967.0,0.012663]
[1743976781208,0.0001364,78968.0,78967.0,0.13556597]
[1743976781774,0.0001364,78968.0,78967.0,0.15010682]
[1743976781980,0.0001364,78968.0,78967.0,0.13744382]
[1743976782548,0.0127994,78968.0,78967.0,0.13744382]
[1743976782971,0.0021364,78968.0,78967.0,0.13744382]
[1743976784407,0.0021364,78968.0,78967.0,0.44249199]
[1743976784572,0.0021364,78968.0,78967.0,0.48069764]
[1743976784782,0.0021364,78968.0,78967.0,0.48569764]
[1743976785002,0.0021364,78968.0,78967.0,0.83518006]
[1743976785211,0.0003344,78997.0,78996.0,0.265835]
[1743976785406,0.00078896,78997.0,78996.0,0.40327882]
[1743976786513,0.00178896,78997.0,78996.0,0.40327882]
[1743976787984,0.00078896,78997.0,78996.0,0.40327882]
[1743976788181,0.00078896,78997.0,78996.0,0.40427882]
[1743976788385,0.00178896,78997.0,78996.0,0.40427882]
[1743976788800,0.00078896,78997.0,78996.0,0.40427882]
[1743976791465,0.00078896,78997.0,78996.0,0.001]
[1743976791689,0.01661144,78997.0,78996.0,0.001]
[1743976791892,0.02309995,78997.0,78996.0,0.001]
[1743976792502,0.265942,78964.0,78963.0,0.11232333]
[1743976793116,0.27243051,78964.0,78963.0,0.11232333]
[1743976794000,0.28488642,78964.0,78963.0,0.11532333]
[1743976794220,0.28488642,78964.0,78963.0,0.11232333]
[1743976794860,0.26599,78951.0,78944.0,0.266008]
[1743976795030,0.26599,78951.0,78945.0,0.12290297]
[1743976795231,0.0064592,78950.0,78945.0,0.12290297]
[1743976795410,0.012665,78954.0,78945.0,0.12290297]
[1743976795411,0.265977,78954.0,78948.0,0.012666]
[1743976795654,0.0064592,78953.0,78949.0,0.13744382]
[1743976796566,0.0064592,78953.0,78949.0,0.15010982]
[1743976796972,0.001,78951.0,78949.0,0.40343482]
[1743976797147,0.265977,78954.0,78949.0,0.40343482]
[1743976797528,0.26599,78951.0,78949.0,0.13744382]
[1743976797742,0.26599,78951.0,78949.0,0.14244382]
[1743976797971,0.0064592,78950.0,78949.0,0.14244382]
[1743976798181,0.0064592,78950.0,78949.0,0.13944382]
[1743976798391,0.0064592,78950.0,78949.0,0.14044382]
[1743976799044,0.0064592,78950.0,78949.0,0.13944382]
[1743976799322,0.0064592,78950.0,78949.0,0.14044382]
[1743976799743,0.0064592,78950.0,78949.0,0.13844382]
[1743976799908,0.265983,78953.0,78949.0,0.14044382]
[1743976800278,0.0064592,78950.0,78949.0,0.13844382]
[1743976800519,7.48e-05,78964.0,78952.0,0.012665]
[1743976800752,7.48e-05,78964.0,78962.0,0.01454085]
[1743976801024,7.48e-05,78964.0,78962.0,0.253285]
[1743976801242,0.012664,78961.0,78957.0,0.01454085]
[1743976801503,0.012664,78961.0,78949.0,0.002]
[1743976801504,0.253324,78950.0,78949.0,0.002]
[1743976801745,0.012666,78948.0,78942.0,0.012667]
[1743976802000,0.012663,78970.0,78963.0,0.012664]
[1743976802252,0.012663,78970.0,78946.0,0.266002]
[1743976802253,0.012665,78955.0,78946.0,0.266002]
[1743976802480,0.012665,78955.0,78943.0,0.50532]
[1743976802481,0.26599,78951.0,78943.0,0.16532]
[1743976802701,0.265998,78948.0,78944.0,0.12290297]
[1743976802938,0.266003,78946.0,78945.0,0.01454085]
[1743976803153,0.266003,78946.0,78945.0,0.12290297]
[1743976803514,0.266017,78942.0,78941.0,0.002]
[1743976803740,0.012665,78957.0,78943.0,0.003]
[1743976803975,0.012667,78944.0,78943.0,0.003]
[1743976804203,0.012667,78942.0,78941.0,0.002]
[1743976804435,0.01583427,78942.0,78941.0,0.002]
[1743976804923,0.36183427,78942.0,78941.0,0.002]
[1743976805169,0.358667,78942.0,78941.0,0.002]
[1743976805413,0.42640813,78942.0,78941.0,0.002]
[1743976805663,0.47556997,78942.0,78941.0,0.002]
[1743976805904,0.48156997,78942.0,78941.0,0.0017]
[1743976807161,0.352667,78942.0,78941.0,0.0017]
[1743976807400,0.358667,78942.0,78941.0,0.0017]
[1743976807643,0.011,78942.0,78941.0,0.0017]
[1743976807918,0.012667,78942.0,78941.0,0.0017]
[1743976808185,0.02183411,78942.0,78941.0,0.0017]
[1743976808461,0.011,78942.0,78941.0,0.40516382]
[1743976808671,0.265968,78957.0,78950.0,0.265989]
[1743976808920,0.265961,78959.0,78952.0,0.00632767]
[1743976809171,0.012666,78948.0,78942.0,0.12290297]
[1743976809408,0.012666,78948.0,78941.0,0.0017]
[1743976809409,0.012667,78942.0,78941.0,0.0017]
[1743976809655,0.47873739,78942.0,78941.0,0.0017]
[1743976809889,0.48487648,78942.0,78941.0,0.0017]
[1743976810106,0.48987648,78942.0,78941.0,1e-06]
[1743976810351,0.352669,78931.0,78930.0,3e-07]
[1743976810612,0.352669,78931.0,78893.0,0.3998225]
[1743976810613,0.253504,78894.0,78893.0,0.3998225]
[1743976810857,0.253533,78885.0,78884.0,3e-07]
[1743976811156,0.352676,78884.0,78883.0,7e-07]
[1743976811419,0.352677,78882.0,78879.0,3e-07]
[1743976811660,0.48057997,78880.0,78879.0,3e-07]
[1743976811889,0.606284,78863.0,78858.0,8e-05]
[1743976812105,0.89446697,78863.0,78858.0,8e-05]
[1743976812319,0.89446697,78863.0,78836.0,0.01748]
[1743976812320,0.017681,78852.0,78836.0,0.01748]
[1743976812538,0.266371,78837.0,78836.0,0.01748]
[1743976812751,0.89459397,78837.0,78836.0,0.01748]
[1743976812973,0.90623756,78837.0,78836.0,0.01748]
[1743976813187,0.90623756,78837.0,78836.0,0.01736933]
[1743976813188,0.74091756,78837.0,78836.0,0.01736933]
[1743976813399,0.35164359,78837.0,78836.0,0.01782369]
[1743976813612,0.01164359,78837.0,78836.0,0.03050769]
[1743976813829,0.01164359,78837.0,78836.0,0.16795151]
[1743976814052,5.9e-07,78837.0,78836.0,0.50795151]
[1743976814963,0.025,78908.0,78883.0,0.012677]
[1743976815172,0.012674,78898.0,78890.0,0.012675]
[1743976815382,0.012676,78887.0,78879.0,0.16532]
[1743976815592,0.00316924,78886.0,78879.0,0.16532]
[1743976815804,0.012677,78878.0,78864.0,0.01268]
[1743976816058,0.012678,78872.0,78863.0,0.01268]
[1743976816280,0.00316997,78871.0,78867.0,0.00045436]
[1743976816488,0.012678,78871.0,78867.0,0.00045436]
[1743976816702,0.00316997,78870.0,78869.0,0.012679]
[1743976816933,0.15,78917.0,78869.0,0.012679]
[1743976816934,0.0031696,78898.0,78889.0,0.012676]
[1743976817144,0.266229,78879.0,78869.0,0.012679]
[1743976817360,0.253559,78877.0,78867.0,0.00045436]
[1743976817602,0.005,78871.0,78867.0,0.00045436]
[1743976817810,0.012679,78868.0,78867.0,0.00045436]
[1743976818020,0.54714798,78868.0,78867.0,0.00045436]
[1743976818244,0.54714798,78868.0,78825.0,1.09564]
[1743976818245,0.266362,78840.0,78829.0,0.266397]
[1743976818452,0.00317132,78839.0,78830.0,0.012685]
[1743976818717,0.00317132,78839.0,78831.0,0.26639]
[1743976818929,0.015853,78846.0,78836.0,0.03005333]
[1743976819133,0.012683,78845.0,78836.0,0.03005333]
[1743976819341,0.012684,78839.0,78836.0,0.01736933]
[1743976819548,0.012684,78837.0,78836.0,0.01736933]
[1743976820170,0.13558697,78837.0,78836.0,0.01736933]
[1743976820382,0.59080911,78837.0,78836.0,0.01736933]
[1743976820597,0.266422,78822.0,78821.0,0.002]
[1743976820814,0.012688,78814.0,78804.0,0.0001674]
[1743976821030,0.60648,78805.0,78804.0,4e-07]
[1743976821259,0.26655,78784.0,78783.0,0.002]
[1743976821501,0.62830297,78805.0,78783.0,0.002]
[1743976821502,0.012691,78792.0,78783.0,0.002]
[1743976821711,0.012691,78790.0,78783.0,0.002]
[1743976821921,0.253858,78784.0,78783.0,0.002]
[1743976822132,0.60655,78784.0,78783.0,0.002]
[1743976822340,0.89530585,78784.0,78783.0,0.002]
[1743976822993,0.77240288,78784.0,78783.0,0.002]
[1743976823198,0.16585288,78784.0,78783.0,0.002]
[1743976823410,0.00045288,78784.0,78783.0,0.002]
[1743976823850,0.01314488,78784.0,78783.0,0.002]
[1743976824063,0.00545288,78784.0,78783.0,0.014693]
[1743976824269,0.00545288,78784.0,78783.0,0.39145697]
[1743976824481,0.01045288,78784.0,78783.0,0.002]
[1743976824690,0.1392213,78784.0,78783.0,0.002]
[1743976824912,0.005,78765.0,78752.0,4e-07]
[1743976825139,0.606655,78753.0,78752.0,4e-07]
[1743976825392,0.266727,78732.0,78699.0,0.0066118]
[1743976825607,0.89506997,78732.0,78699.0,0.0066118]
[1743976825817,0.72962997,78732.0,78691.0,0.012707]
[1743976826035,0.89506997,78732.0,78704.0,0.0001674]
[1743976826246,1.02540926,78732.0,78704.0,0.0001674]
[1743976826501,0.606764,78721.0,78704.0,0.0001674]
[1743976826726,0.72966697,78721.0,78704.0,0.0001674]
[1743976826935,0.73011929,78721.0,78705.0,0.25411]
[1743976827151,0.34045232,78721.0,78706.0,0.012705]
[1743976827366,0.01315532,78721.0,78709.0,0.012705]
[1743976827574,0.39329555,78721.0,78704.0,0.0001674]
[1743976827798,0.39011929,78721.0,78704.0,0.0001674]
[1743976828042,0.75595239,78721.0,78704.0,0.0001674]
[1743976828255,0.75495239,78721.0,78704.0,0.0001674]
[1743976828462,0.7662832,78721.0,78704.0,0.0001674]
[1743976828720,0.9086101,78721.0,78704.0,0.0001674]
[1743976829425,0.9134901,78721.0,78704.0,0.0001674]
[1743976829637,0.266829,78702.0,78701.0,4e-07]
[1743976829852,0.352706,78701.0,78700.0,4e-05]
[1743976830068,0.606873,78689.0,78688.0,0.0001674]
[1743976830281,0.72977597,78689.0,78688.0,0.0001674]
[1743976830485,0.606931,78672.0,78671.0,0.002]
[1743976830693,0.89975397,78672.0,78671.0,0.002]
[1743976831108,0.12290297,78672.0,78671.0,0.002]
[1743976831338,0.00045204,78672.0,78671.0,0.002]
[1743976831542,0.0036302,78672.0,78671.0,0.002]
[1743976831967,0.0163412,78672.0,78671.0,0.002]
[1743976832176,0.13924417,78672.0,78671.0,0.002]
[1743976832604,0.47924417,78672.0,78671.0,0.002]
[1743976832818,0.47606601,78672.0,78671.0,0.002]
[1743976833239,0.00045204,78672.0,78671.0,0.002]
[1743976833454,0.00045204,78672.0,78671.0,0.014711]
[1743976833662,0.00045204,78672.0,78671.0,0.13761397]
[1743976833871,0.25418,78685.0,78671.0,0.12490297]
[1743976834128,0.012709,78681.0,78671.0,0.12503937]
[1743976834342,0.25422,78672.0,78671.0,0.0021364]
[1743976834759,0.38983397,78672.0,78671.0,4e-07]
[1743976835184,0.56103397,78672.0,78671.0,4e-07]
[1743976835629,0.56103397,78672.0,78667.0,6.6e-07]
[1743976835630,0.266943,78668.0,78667.0,6.6e-07]
[1743976835843,0.72984597,78668.0,78667.0,1.3e-07]
[1743976836060,0.90148597,78668.0,78667.0,1.3e-07]
[1743976836277,0.532711,78667.0,78666.0,94.5400835]
[1743976836503,0.87068133,78667.0,78666.0,92.10652631]
[1743976836728,0.76555884,78667.0,78666.0,89.83250507]
[1743976836967,0.79055884,78667.0,78666.0,86.9820136]
[1743976837183,0.78537581,78667.0,78666.0,85.13106889]
[1743976837420,1.05793581,78667.0,78666.0,82.59638188]
[1743976837653,1.06919795,78667.0,78666.0,82.00814557]
[1743976837877,0.74663795,78667.0,78666.0,80.14651122]
[1743976838123,0.92686098,78667.0,78666.0,79.86679071]
[1743976838577,0.92686098,78667.0,78666.0,79.67669959]
[1743976838797,0.97686098,78667.0,78666.0,79.48112862]
[1743976839010,0.97686098,78667.0,78666.0,79.44869956]
[1743976839011,0.97186098,78667.0,78666.0,79.44869956]
[1743976839215,0.42410998,78667.0,78666.0,79.39781543]
[1743976839438,0.34572353,78667.0,78666.0,79.39781543]
[1743976839654,0.13416511,78667.0,78666.0,79.39781543]
[1743976839860,0.11916464,78667.0,78666.0,79.39781543]
[1743976840063,0.12290297,78667.0,78666.0,79.39781543]
[1743976840272,0.30006297,78667.0,78666.0,79.39781543]
[1743976840485,0.17744,78683.0,78666.0,79.52071311]
[1743976840723,0.00317823,78682.0,78667.0,0.012711]
[1743976840909,0.00013562,78683.0,78666.0,79.52071311]
[1743976841114,0.12290297,78681.0,78666.0,79.39781543]
[1743976841321,0.00317811,78680.0,78666.0,79.39781543]
[1743976841533,0.12290297,78679.0,78666.0,79.39781543]
[1743976841815,0.00317822,78678.0,78666.0,79.39781543]
[1743976842029,0.00317822,78678.0,78673.0,0.01271]
[1743976842236,0.17872,78707.0,78677.0,0.01271]
[1743976842442,0.012706,78698.0,78653.0,0.012714]
[1743976842652,0.13560997,78691.0,78650.0,0.18166]
[1743976842862,0.025,78686.0,78650.0,0.18166]
[1743976843071,0.34,78684.0,78650.0,0.00254]
[1743976843291,0.35271,78678.0,78650.0,0.00254]
[1743976843486,0.34,78676.0,78650.0,0.00254]
[1743976843714,0.34,78674.0,78650.0,0.00254]
[1743976843924,0.34,78672.0,78666.0,79.39795105]
[1743976844139,0.00317832,78671.0,78666.0,79.39795105]
[1743976844567,0.00317832,78671.0,78667.0,0.07275417]
[1743976844767,0.17952,78705.0,78672.0,0.012711]
[1743976844971,0.12477211,78704.0,78675.0,0.01271]
[1743976845176,0.12477211,78704.0,78676.0,0.12290297]
[1743976845381,0.00186914,78704.0,78681.0,0.012709]
[1743976845613,0.00186914,78704.0,78684.0,0.254178]
[1743976845792,0.00186914,78713.0,78688.0,0.01454085]
[1743976846030,0.00186914,78713.0,78689.0,0.12290297]
[1743976846442,0.00186914,78713.0,78689.0,0.13561097]
[1743976846653,0.00186914,78713.0,78690.0,0.0607504]
[1743976846881,0.00186914,78718.0,78691.0,0.37705897]
[1743976847083,0.00186914,78718.0,78715.0,0.254079]
[1743976847294,0.002,78719.0,78711.0,0.17952]
[1743976847517,0.002,78719.0,78711.0,0.30290297]
[1743976847721,0.002,78719.0,78677.0,0.0669463]
[1743976847934,0.00186914,78718.0,78704.0,0.012705]
[1743976848162,0.0003354,78721.0,78715.0,0.012704]
[1743976848396,0.00186914,78735.0,78731.0,0.012701]
[1743976848605,0.00186914,78746.0,78741.0,0.012699]
[1743976848809,0.000336,78768.0,78753.0,0.012697]
[1743976849028,0.000336,78768.0,78755.0,0.012697]
[1743976849241,0.000336,78783.0,78778.0,0.012693]
[1743976849511,0.000336,78783.0,78764.0,0.253923]
[1743976849735,0.000336,78783.0,78766.0,0.253916]
[1743976849946,0.000336,78783.0,78761.0,0.012696]
[1743976849947,0.012696,78760.0,78715.0,0.03783136]
[1743976850159,0.1846,78762.0,78729.0,0.12290297]
[1743976850369,0.012695,78765.0,78727.0,0.012702]
[1743976850581,0.012697,78758.0,78719.0,0.012703]
[1743976850798,0.34,78760.0,78731.0,0.254029]
[1743976851015,0.34,78758.0,78732.0,0.17751977]
[1743976851227,0.12290297,78758.0,78732.0,0.12290297]
[1743976851453,0.18568,78757.0,78735.0,0.0127]
[1743976851665,0.02283856,78757.0,78742.0,0.012699]
[1743976851868,0.01783856,78757.0,78750.0,0.012698]
[1743976852045,0.01783856,78757.0,78753.0,0.253957]
[1743976852260,0.18544,78775.0,78754.0,0.12290297]
[1743976852496,0.0114638,78767.0,78751.0,0.027937]
[1743976852704,0.13436677,78767.0,78737.0,0.0127]
[1743976852911,0.253933,78761.0,78717.0,0.03783136]
[1743976853116,0.34,78759.0,78728.0,0.012701]
[1743976853327,0.0114638,78758.0,78736.0,0.0127]
[1743976853535,0.0114638,78758.0,78729.0,0.13560397]
[1743976853536,0.0114638,78758.0,78729.0,0.00254002]
[1743976853741,0.0114638,78758.0,78706.0,0.012705]
[1743976853742,0.34,78745.0,78706.0,0.012705]
[1743976853951,0.012699,78741.0,78701.0,0.014706]
[1743976854158,0.34,78739.0,78703.0,0.012705]
[1743976854367,0.34,78737.0,78711.0,0.012704]
[1743976854557,0.012701,78728.0,78704.0,0.12290297]
[1743976854809,0.254063,78721.0,78678.0,0.01271]
[1743976855079,0.34,78719.0,78681.0,0.012709]
[1743976855343,0.34,78717.0,78680.0,0.012709]
[1743976855584,0.34,78717.0,78672.0,0.012711]
[1743976855585,0.34,78710.0,78701.0,0.00213642]
[1743976855795,0.594123,78702.0,78701.0,0.00213642]
[1743976856051,0.75473197,78702.0,78701.0,0.00213642]
[1743976856256,0.012707,78692.0,78666.0,79.39781543]
[1743976856465,0.34,78690.0,78671.0,0.00213562]
[1743976856671,0.34,78688.0,78671.0,0.00213562]
[1743976856890,0.46290297,78688.0,78671.0,0.00213562]
[1743976857100,0.34,78686.0,78671.0,0.00213562]
[1743976857311,0.34,78684.0,78671.0,0.00213562]
[1743976857566,0.01271,78677.0,78671.0,0.00213562]
[1743976857804,0.34,78675.0,78671.0,0.00213562]
[1743976858017,0.12290297,78674.0,78671.0,0.00213562]
[1743976858459,0.012711,78672.0,78671.0,0.00213562]
[1743976858664,0.50561397,78672.0,78671.0,0.00213562]
[1743976858865,0.51207777,78672.0,78671.0,0.00213562]
[1743976859072,0.51207777,78672.0,78666.0,79.39781543]
[1743976859073,0.48354745,78672.0,78666.0,79.39781543]
[1743976859503,0.0114638,78672.0,78666.0,79.39781543]
[1743976859706,0.34,78670.0,78666.0,79.39781543]
[1743976859923,0.34,78668.0,78666.0,79.39781543]
[1743976860131,0.46290297,78668.0,78666.0,79.39781543]
[1743976860343,0.47561397,78667.0,78666.0,79.39781543]
[1743976860560,0.0114638,78667.0,78666.0,79.39781543]
[1743976860801,1.1078994,78702.0,78670.0,0.254224]
[1743976861013,0.12290297,78701.0,78669.0,0.266937]
[1743976861225,0.12290297,78701.0,78678.0,0.2542]
[1743976861226,0.00013627,78694.0,78678.0,0.2542]
[1743976861439,0.00013627,78694.0,78681.0,0.012709]
[1743976861651,0.00013627,78694.0,78692.0,0.012707]
[1743976861894,0.00013627,78694.0,78678.0,0.01271]
[1743976862153,0.00013627,78694.0,78679.0,0.12290297]
[1743976862846,0.00013627,78694.0,78670.0,0.012711]
[1743976863029,0.12303924,78694.0,78671.0,0.12289768]
[1743976863232,0.46290297,78693.0,78671.0,0.12289768]
[1743976863433,0.00013627,78694.0,78666.0,79.39781543]
[1743976863434,0.01271,78677.0,78666.0,79.39781543]
[1743976863638,0.34,78671.0,78666.0,79.39781543]
[1743976863765,0.34,78669.0,78666.0,79.39781543]
[1743976863971,0.34,78667.0,78666.0,79.39781543]
[1743976864426,0.46290297,78667.0,78666.0,79.39781543]
[1743976864838,0.46290297,78667.0,78666.0,79.38781543]
[1743976865506,0.48587411,78667.0,78666.0,79.38781543]
[1743976866097,0.02297114,78667.0,78666.0,79.38781543]
[1743976866298,0.02297114,78672.0,78666.0,79.38781543]
[1743976866588,0.02297114,78672.0,78666.0,79.42209902]
[1743976867207,0.02297114,78672.0,78666.0,79.38781543]
[1743976867208,0.34,78667.0,78666.0,79.38781543]
[1743976867413,0.46290297,78667.0,78666.0,79.38781543]
[1743976867615,0.48587411,78667.0,78666.0,79.38781543]
[1743976867818,0.02297114,78667.0,78666.0,79.38781543]
[1743976868140,0.02297114,78667.0,78666.0,79.49156451]
[1743976868350,0.02297114,78667.0,78666.0,79.38781543]
[1743976869916,0.14587411,78667.0,78666.0,79.38781543]
[1743976870123,0.48587411,78667.0,78666.0,79.38781543]
[1743976871166,0.47946087,78667.0,78666.0,79.38781543]
[1743976871393,0.68778087,78667.0,78666.0,79.38781543]
[1743976871595,0.70033187,78667.0,78666.0,79.38781543]
[1743976871797,0.74487272,78667.0,78666.0,79.38781543]
[1743976872001,0.77909308,78667.0,78666.0,79.38781543]
[1743976872195,0.8265794,78667.0,78666.0,78.25200674]
[1743976872430,0.8265794,78667.0,78666.0,73.01463004]
[1743976872431,0.87902707,78667.0,78666.0,73.01463004]
[1743976872634,0.97902707,78667.0,78666.0,70.38529373]
[1743976872834,0.97902707,78667.0,78666.0,69.50405463]
[1743976872988,0.97902707,78667.0,78666.0,67.47217425]
[1743976873191,1.1451361,78667.0,78666.0,65.50938652]
[1743976873421,1.15662742,78667.0,78666.0,65.2817891]
[1743976873620,1.15662742,78667.0,78666.0,65.1607891]
[1743976873851,1.29002742,78667.0,78666.0,64.99827619]
[1743976874067,1.25101542,78667.0,78666.0,58.62106702]
[1743976874282,1.18401163,78667.0,78666.0,55.23667074]
[1743976874486,1.27309289,78667.0,78666.0,48.74651373]
[1743976874708,0.90788031,78667.0,78666.0,46.25082515]
[1743976874917,0.90788031,78667.0,78666.0,45.80227961]
[1743976874918,1.13956139,78667.0,78666.0,45.80227961]
[1743976875135,1.21815871,78667.0,78666.0,45.52973194]
[1743976875351,1.07850187,78667.0,78666.0,42.95274757]
[1743976875558,1.84466524,78667.0,78666.0,40.02769243]
[1743976875784,1.84466524,78667.0,78666.0,27.96439011]
[1743976875785,3.0746323,78667.0,78666.0,27.96439011]
[1743976875991,3.37175122,78667.0,78666.0,22.72928246]
[1743976876191,4.07092989,78667.0,78666.0,18.25235467]
[1743976876398,2.54754656,78667.0,78666.0,17.9949381]
[1743976876606,2.63858656,78667.0,78666.0,17.90984524]
[1743976876813,3.89963019,78667.0,78666.0,17.0729893]
[1743976877013,3.91533954,78667.0,78666.0,15.13926437]
[1743976877233,3.65644903,78667.0,78666.0,13.53419158]
[1743976877439,3.66040781,78667.0,78666.0,10.54406005]
[1743976877645,6.38044967,78667.0,78666.0,9.50223421]
[1743976877862,5.77381027,78667.0,78666.0,6.16388307]
[1743976878073,6.2563462,78667.0,78666.0,0.19614667]
[1743976878275,0.15,78476.0,78436.0,0.01301303]
[1743976878484,1.25638797,78573.0,78435.0,0.00049]
[1743976878693,1.25638797,78573.0,78427.0,0.0333]
[1743976878694,0.01454085,78484.0,78427.0,0.0333]
[1743976878912,0.15,78466.0,78436.0,0.00045204]
[1743976879305,0.1,78505.0,78443.0,0.012748]
[1743976879526,0.15,78496.0,78456.0,0.05]
[1743976879820,0.23697132,78495.0,78464.0,0.34]
[1743976880016,0.1,78547.0,78464.0,0.34]
[1743976880017,0.1,78543.0,78487.0,0.254817]
[1743976880221,0.15,78538.0,78488.0,0.254813]
[1743976880426,0.1,78555.0,78485.0,0.005]
[1743976880634,0.12290297,78530.0,78492.0,0.0462]
[1743976880839,0.12290297,78530.0,78494.0,0.34]
[1743976881050,0.15,78564.0,78517.0,0.005]
[1743976881256,0.2428,78549.0,78516.0,0.338]
[1743976881468,0.1690037,78550.0,78541.0,0.00426955]
[1743976881685,0.00073045,78589.0,78547.0,0.00426955]
[1743976881902,0.01984614,78637.0,78546.0,0.12290297]
[1743976881903,0.00073045,78605.0,78564.0,0.04779928]
[1743976882115,0.00073045,78605.0,78568.0,0.00426955]
[1743976882326,0.00073045,78620.0,78568.0,0.44445552]
[1743976882533,0.002,78629.0,78590.0,0.00416884]
[1743976882752,0.002,78629.0,78597.0,0.12290297]
[1743976882957,0.17151694,78619.0,78613.0,0.00416884]
[1743976883167,0.05972009,78619.0,78614.0,0.12290297]
[1743976883381,0.04088704,78619.0,78618.0,0.46697113]
[1743976883610,0.002,78629.0,78618.0,0.12290297]
[1743976883813,0.002,78629.0,78623.0,0.46688884]
[1743976884225,0.002,78629.0,78623.0,0.12445337]
[1743976884428,0.002,78629.0,78628.0,0.00406816]
[1743976884635,0.002,78629.0,78628.0,0.56527113]
[1743976884864,0.002,78629.0,78628.0,0.54027113]
[1743976885064,0.002,78659.0,78639.0,0.05406816]